[Event "3rd FIDE WCCC Blitz U10 2019"]
[Site "Minsk"]
[Date "2019.08.18"]
[Round "4.4"]
[White "Boykov, Pavel"]
[Black "Zverev, Lev"]
[Result "0-1"]
[ECO "C88"]
[WhiteElo "1553"]
[BlackElo "1881"]
[Annotator "NA"]
[PlyCount "92"]
[EventDate "2019.08.18"]
[EventType "swiss"]
[EventCountry "BLR"]
[SourceTitle "playchess.com"]
[Source "ChessBase"]
[SourceQuality "1"]
[TimeControl "300+2"]

1. e4 {[%emt 0:00:00]} e5 {[%emt 0:00:00]} 2. Nf3 {[%emt 0:00:00]} Nc6 {[%emt 0:00:00]} 3. Bb5 {[%emt 0:00:01]} a6 {[%emt 0:00:01]} 4. Ba4 {[%emt 0:00:00]} Nf6 {[%emt 0:00:02]} 5. O-O {[%emt 0:00:02]} Be7 {[%emt 0:00:01]} 6. Re1 {[%emt 0:00:02]} b5 {[%emt 0:00:02]} 7. Bb3 {[%emt 0:00:01]} O-O {[%emt 0:00:03]} 8. d3 {[%emt 0:00:04]} d6 {[%emt 0:00:01]} 9. h3 {[%emt 0:00:02]} Na5 {[%emt 0:00:01]} 10. c3 {[%emt 0:00:01]} Nxb3 {[%emt 0:00:06]} 11. axb3 {[%emt 0:00:02]} c5 {[%emt 0:00:03]} 12. Be3 {[%emt 0:00:09]} Bb7 {[%emt 0:00:03]} 13. Nbd2 {[%emt 0:00:01]} Re8 {[%emt 0:00:02]} 14. Qc2 {[%emt 0:00:02]} Bf8 {[%emt 0:00:01]} 15. Nf1 {[%emt 0:00:10]} g6 {[%emt 0:00:03]} 16. Bg5 {[%emt 0:00:03]} Bg7 {[%emt 0:00:04]} 17. Ne3 {[%emt 0:00:05]} h6 {[%emt 0:00:26]} 18. Bxf6 {[%emt 0:00:03]} Bxf6 {[%emt 0:00:02]} 19. c4 {[%emt 0:00:01]} Bg7 {[%emt 0:00:07]} 20. Qd2 {[%emt 0:00:24]} Qd7 {[%emt 0:00:03]} 21. Nd5 {[%emt 0:00:06]} Bxd5 {[%emt 0:00:04]} 22. exd5 {[%emt 0:00:05]} f5 {[%emt 0:00:01]} 23. Qc2 {[%emt 0:00:31]} g5 {[%emt 0:00:08]} 24. Ra3 {[%emt 0:00:13]} b4 {[%emt 0:00:01]} 25. Raa1 {[%emt 0:00:01]} Bf6 {[%emt 0:00:08]} 26. Re2 {[%emt 0:00:09]} Kh8 {[%emt 0:00:03]} 27. Rae1 {[%emt 0:00:17]} Rg8 {[%emt 0:00:02]} 28. Nh2 {[%emt 0:00:08]} h5 {[%emt 0:00:05]} 29. Re3 {[%emt 0:00:03]} f4 {[%emt 0:00:28]} 30. Re4 {[%emt 0:00:13]} g4 {[%emt 0:00:01]} 31. hxg4 {[%emt 0:00:18]} hxg4 {[%emt 0:00:02]} 32. Kf1 {[%emt 0:00:54]} Qh7 {[%emt 0:00:08]} 33. Kg1 {[%emt 0:00:18]} Rg6 {[%emt 0:00:08]} 34. f3 {[%emt 0:00:25]} g3 {[%emt 0:00:43]} 35. Ng4 {[%emt 0:00:28]} Rxg4 {[%emt 0:00:20]} 36. fxg4 {[%emt 0:00:02]} Qh2+ {[%emt 0:00:02]} 37. Kf1 {[%emt 0:00:01]} f3 {[%emt 0:00:01]} 38. gxf3 {[%emt 0:00:47]} Qxc2 {[%emt 0:00:03]} 39. R1e2 {[%emt 0:00:03]} Qxd3 {[%emt 0:00:03]} 40. Kg2 {[%emt 0:00:01]} Bg5 {[%emt 0:00:05]} 41. Re1 {[%emt 0:00:02]} Rf8 {[%emt 0:00:05]} 42. Rh1+ {[%emt 0:00:03]} Kg7 {[%emt 0:00:02]} 43. f4 {[%emt 0:00:01]} exf4 {[%emt 0:00:06]} 44. Re6 {[%emt 0:00:02]} Qd2+ {[%emt 0:00:07]} 45. Kh3 {[%emt 0:00:02]} Rh8+ {[%emt 0:00:02]} 46. Rh6 {[%emt 0:00:03]} Rxh6# {[%emt 0:00:03]} 0-1

[Event "3rd FIDE WCCC Blitz U10 2019"]
[Site "Minsk"]
[Date "2019.08.18"]
[Round "4.5"]
[White "Tiulyagin, Matvey"]
[Black "Novozhilov, Semen"]
[Result "0-1"]
[ECO "A45"]
[WhiteElo "1348"]
[BlackElo "1686"]
[Annotator "NA"]
[PlyCount "142"]
[EventDate "2019.08.18"]
[EventType "swiss"]
[EventCountry "BLR"]
[SourceTitle "playchess.com"]
[Source "ChessBase"]
[SourceQuality "1"]
[TimeControl "300+2"]

1. d4 {[%emt 0:00:00]} Nf6 {[%emt 0:00:00]} 2. Bf4 {[%emt 0:00:00]} g6 {[%emt 0:00:00]} 3. e3 {[%emt 0:00:00]} Bg7 {[%emt 0:00:01]} 4. Nf3 {[%emt 0:00:00]} O-O {[%emt 0:00:03]} 5. Be2 {[%emt 0:00:01]} d6 {[%emt 0:00:01]} 6. Nbd2 {[%emt 0:00:01]} Nbd7 {[%emt 0:00:03]} 7. c3 {[%emt 0:00:02]} b6 {[%emt 0:00:01]} 8. Rc1 {[%emt 0:00:01]} Bb7 {[%emt 0:00:01]} 9. c4 {[%emt 0:00:02]} Qe8 {[%emt 0:00:07]} 10. h3 {[%emt 0:00:07]} e5 {[%emt 0:00:10]} 11. dxe5 {[%emt 0:00:09]} dxe5 {[%emt 0:00:01]} 12. Bh2 {[%emt 0:00:01]} Rd8 {[%emt 0:00:07]} 13. Qc2 {[%emt 0:00:04]} Qe7 {[%emt 0:00:18]} 14. O-O {[%emt 0:00:05]} Ne8 {[%emt 0:00:08]} 15. Rfd1 {[%emt 0:00:07]} Nd6 {[%emt 0:00:05]} 16. c5 {[%emt 0:00:09]} Nxc5 {[%emt 0:00:14]} 17. b4 {[%emt 0:00:03]} Nce4 {[%emt 0:00:37]} 18. Nxe4 {[%emt 0:00:04]} Nxe4 {[%emt 0:00:05]} 19. Rxd8 {[%emt 0:00:05]} Rxd8 {[%emt 0:00:02]} 20. Qxc7 {[%emt 0:00:05]} Qxc7 {[%emt 0:00:41]} 21. Rxc7 {[%emt 0:00:01]} Bd5 {[%emt 0:00:00]} 22. Bxe5 {[%emt 0:00:15]} Bxa2 {[%emt 0:00:10]} 23. Bxg7 Kxg7 {[%emt 0:00:02]} 24. Nd4 {[%emt 0:00:15]} a5 {[%emt 0:00:42]} 25. bxa5 {[%emt 0:00:07]} bxa5 {[%emt 0:00:01]} 26. Bg4 {[%emt 0:00:14]} Kf8 {[%emt 0:00:17]} 27. Ra7 {[%emt 0:00:10]} Rd5 {[%emt 0:00:11]} 28. Bf3 {[%emt 0:00:11]} Bb1 {[%emt 0:00:15]} 29. Nc6 {[%emt 0:00:15]} Rc5 {[%emt 0:00:11]} 30. Bxe4 {[%emt 0:00:22]} Bxe4 {[%emt 0:00:01]} 31. Nxa5 {[%emt 0:00:04]} Rc1+ {[%emt 0:00:04]} 32. Kh2 {[%emt 0:00:01]} Rc2 {[%emt 0:00:03]} 33. Kg3 {[%emt 0:00:02]} h5 {[%emt 0:00:09]} 34. h4 {[%emt 0:00:05]} Bd5 {[%emt 0:00:12]} 35. Nb7 {[%emt 0:00:05]} Rc7 {[%emt 0:00:02]} 36. Ra5 {[%emt 0:00:50]} Bxb7 {[%emt 0:00:02]} 37. Ra2 {[%emt 0:00:04]} Bd5 {[%emt 0:00:05]} 38. Rd2 {[%emt 0:00:01]} Rc5 {[%emt 0:00:09]} 39. Rd4 {[%emt 0:00:06]} Kg7 {[%emt 0:00:02]} 40. e4 {[%emt 0:00:06]} Be6 {[%emt 0:00:06]} 41. f3 {[%emt 0:00:02]} Kf6 {[%emt 0:00:09]} 42. Kf4 {[%emt 0:00:09]} g5+ {[%emt 0:00:03]} 43. hxg5+ {[%emt 0:00:05]} Rxg5 {[%emt 0:00:01]} 44. g3 {[%emt 0:00:02]} Ra5 {[%emt 0:00:05]} 45. Rd3 {[%emt 0:00:04]} Ra1 {[%emt 0:00:02]} 46. Rd2 {[%emt 0:00:10]} Ra3 {[%emt 0:00:05]} 47. Rh2 {[%emt 0:00:13]} Kg6 {[%emt 0:00:02]} 48. Rd2 {[%emt 0:00:04]} Ra1 {[%emt 0:00:08]} 49. Rd8 {[%emt 0:00:10]} f6 {[%emt 0:00:12]} 50. Rd6 {[%emt 0:00:06]} Bc4 {[%emt 0:00:11]} 51. e5 {[%emt 0:00:07]} Ra6 {[%emt 0:00:02]} 52. Rd4 {[%emt 0:00:06]} Be2 {[%emt 0:00:05]} 53. Re4 {[%emt 0:00:07]} fxe5+ {[%emt 0:00:01]} 54. Rxe5 {[%emt 0:00:04]} Rf6+ {[%emt 0:00:01]} 55. Ke4 {[%emt 0:00:07]} Bxf3+ {[%emt 0:00:02]} 56. Ke3 {[%emt 0:00:01]} Bg4 {[%emt 0:00:01]} 57. Kd4 {[%emt 0:00:04]} Rf3 {[%emt 0:00:01]} 58. Re8 {[%emt 0:00:04]} Rxg3 {[%emt 0:00:02]} 59. Ke4 {[%emt 0:00:03]} Rg1 {[%emt 0:00:02]} 60. Kf4 {[%emt 0:00:03]} Rf1+ {[%emt 0:00:02]} 61. Kg3 {[%emt 0:00:01]} Rf3+ {[%emt 0:00:05]} 62. Kg2 {[%emt 0:00:02]} Kg5 {[%emt 0:00:02]} 63. Rg8+ {[%emt 0:00:03]} Kh4 {[%emt 0:00:01]} 64. Rd8 {[%emt 0:00:06]} Re3 {[%emt 0:00:01]} 65. Rd4 {[%emt 0:00:12]} Re2+ {[%emt 0:00:01]} 66. Kf1 {[%emt 0:00:06]} Ra2 {[%emt 0:00:02]} 67. Rb4 {[%emt 0:00:07]} Kg3 {[%emt 0:00:01]} 68. Rb3+ {[%emt 0:00:02]} Bf3 {[%emt 0:00:01]} 69. Rb1 {[%emt 0:00:09]} h4 {[%emt 0:00:02]} 70. Ke1 {[%emt 0:00:05]} h3 {[%emt 0:00:01]} 71. Rb3 {[%emt 0:00:00]} h2 {[%emt 0:00:02]} 0-1

[Event "3rd FIDE WCCC Blitz U10 2019"]
[Site "Minsk"]
[Date "2019.08.18"]
[Round "4.6"]
[White "Navoyan, Gagik"]
[Black "Uskov, Artem"]
[Result "1-0"]
[ECO "D30"]
[WhiteElo "1698"]
[BlackElo "1448"]
[Annotator "NA"]
[PlyCount "129"]
[EventDate "2019.08.18"]
[EventType "swiss"]
[EventCountry "BLR"]
[SourceTitle "playchess.com"]
[Source "ChessBase"]
[SourceQuality "1"]
[TimeControl "300+2"]

1. d4 {[%emt 0:00:01]} d5 {[%emt 0:00:00]} 2. c4 {[%emt 0:00:02]} e6 {[%emt 0:00:01]} 3. Nf3 {[%emt 0:00:01]} c6 {[%emt 0:00:01]} 4. g3 {[%emt 0:00:00]} dxc4 {[%emt 0:00:02]} 5. a4 {[%emt 0:00:03]} b5 {[%emt 0:00:37]} 6. Bg2 {[%emt 0:00:22]} Bb7 {[%emt 0:00:04]} 7. O-O {[%emt 0:00:05]} Nf6 {[%emt 0:00:14]} 8. Ne5 {[%emt 0:00:14]} a6 {[%emt 0:00:03]} 9. Nc3 {[%emt 0:00:29]} Qc8 {[%emt 0:00:02]} 10. Bg5 {[%emt 0:00:11]} Nd5 {[%emt 0:00:15]} 11. Bd2 {[%emt 0:00:14]} Nxc3 {[%emt 0:00:18]} 12. bxc3 {[%emt 0:00:02]} Bd6 {[%emt 0:00:03]} 13. f4 {[%emt 0:00:10]} O-O {[%emt 0:00:05]} 14. e4 {[%emt 0:00:01]} c5 {[%emt 0:00:05]} 15. f5 {[%emt 0:01:18]} exf5 {[%emt 0:00:22]} 16. Rxf5 {[%emt 0:00:24]} cxd4 {[%emt 0:00:02]} 17. cxd4 {[%emt 0:00:06]} Bxe5 {[%emt 0:00:10]} 18. Rxe5 {[%emt 0:00:29]} Nc6 {[%emt 0:00:01]} 19. Rc5 {[%emt 0:00:01]} Qd8 {[%emt 0:00:19]} 20. Be3 {[%emt 0:00:20]} b4 {[%emt 0:00:31]} 21. Rxc4 {[%emt 0:00:06]} a5 {[%emt 0:00:00]} 22. e5 {[%emt 0:00:04]} Qd7 {[%emt 0:00:04]} 23. Rac1 {[%emt 0:00:01]} Rad8 {[%emt 0:00:07]} 24. Bxc6 {[%emt 0:00:03]} Bxc6 25. Rxc6 {[%emt 0:00:01]} Rfe8 {[%emt 0:00:06]} 26. Rd6 {[%emt 0:00:08]} Qb7 {[%emt 0:00:06]} 27. Rxd8 {[%emt 0:00:06]} Rxd8 {[%emt 0:00:01]} 28. Qb3 {[%emt 0:00:10]} h6 {[%emt 0:00:09]} 29. Rf1 {[%emt 0:00:01]} Rc8 {[%emt 0:00:03]} 30. e6 {[%emt 0:00:05]} Rc3 {[%emt 0:00:33]} 31. exf7+ {[%emt 0:00:01]} Kf8 {[%emt 0:00:06]} 32. Qe6 {[%emt 0:00:01]} Qc6 {[%emt 0:00:09]} 33. Qxc6 {[%emt 0:00:07]} Rxc6 {[%emt 0:00:01]} 34. d5 {[%emt 0:00:01]} Rc7 {[%emt 0:00:09]} 35. d6 {[%emt 0:00:00]} Rxf7 {[%emt 0:00:01]} 36. Rd1 {[%emt 0:00:15]} Rd7 {[%emt 0:00:01]} 37. Kf2 {[%emt 0:00:00]} Kf7 {[%emt 0:00:01]} 38. Ke2 {[%emt 0:00:02]} Ke6 {[%emt 0:00:01]} 39. Bf4 {[%emt 0:00:01]} g5 {[%emt 0:00:02]} 40. Be3 {[%emt 0:00:03]} Rxd6 {[%emt 0:00:01]} 41. Rxd6+ {[%emt 0:00:01]} Kxd6 {[%emt 0:00:02]} 42. Kd3 {[%emt 0:00:01]} Kd5 {[%emt 0:00:01]} 43. h4 {[%emt 0:00:04]} gxh4 {[%emt 0:00:09]} 44. gxh4 {[%emt 0:00:00]} h5 {[%emt 0:00:02]} 45. Bb6 {[%emt 0:00:05]} Kc6 {[%emt 0:00:09]} 46. Bxa5 {[%emt 0:00:02]} Kc5 {[%emt 0:00:01]} 47. Bxb4+ {[%emt 0:00:06]} Kxb4 {[%emt 0:00:01]} 48. Ke4 {[%emt 0:00:00]} Ka5 {[%emt 0:00:04]} 49. Kf5 {[%emt 0:00:01]} Kxa4 {[%emt 0:00:01]} 50. Kg5 {[%emt 0:00:01]} Kb5 51. Kxh5 {[%emt 0:00:01]} Kc6 {[%emt 0:00:03]} 52. Kg6 {[%emt 0:00:01]} Kd6 {[%emt 0:00:00]} 53. Kg7 {[%emt 0:00:02]} Ke6 {[%emt 0:00:01]} 54. h5 {[%emt 0:00:00]} Kf5 {[%emt 0:00:01]} 55. h6 {[%emt 0:00:01]} Kg5 {[%emt 0:00:01]} 56. h7 {[%emt 0:00:00]} Kf5 {[%emt 0:00:01]} 57. h8=Q {[%emt 0:00:02]} Ke6 {[%emt 0:00:02]} 58. Qh5 {[%emt 0:00:01]} Kd6 {[%emt 0:00:01]} 59. Kf6 {[%emt 0:00:01]} Kc6 {[%emt 0:00:01]} 60. Ke6 {[%emt 0:00:01]} Kc7 {[%emt 0:00:02]} 61. Qc5+ {[%emt 0:00:04]} Kb7 {[%emt 0:00:06]} 62. Kd7 {[%emt 0:00:02]} Ka6 {[%emt 0:00:05]} 63. Qb4 {[%emt 0:00:02]} Ka7 {[%emt 0:00:01]} 64. Kc7 {[%emt 0:00:01]} Ka6 65. Qb6# {[%emt 0:00:02]} 1-0

[Event "3rd FIDE WCCC Blitz U10 2019"]
[Site "Minsk"]
[Date "2019.08.18"]
[Round "5.1"]
[White "Usov, Aleksandr E."]
[Black "Novozhilov, Semen"]
[Result "1-0"]
[ECO "C08"]
[WhiteElo "1919"]
[BlackElo "1686"]
[Annotator "NA"]
[PlyCount "83"]
[EventDate "2019.08.18"]
[EventType "swiss"]
[EventCountry "BLR"]
[SourceTitle "playchess.com"]
[Source "ChessBase"]
[SourceQuality "1"]
[TimeControl "300+2"]

1. e4 {[%emt 0:00:00]} e6 {[%emt 0:00:00]} 2. d4 {[%emt 0:00:00]} d5 {[%emt 0:00:00]} 3. Nd2 {[%emt 0:00:00]} c5 {[%emt 0:00:01]} 4. exd5 {[%emt 0:00:03]} exd5 {[%emt 0:00:01]} 5. Ngf3 {[%emt 0:00:00]} Nf6 {[%emt 0:00:02]} 6. Bb5+ {[%emt 0:00:01]} Bd7 {[%emt 0:00:01]} 7. Bxd7+ {[%emt 0:00:01]} Nbxd7 {[%emt 0:00:01]} 8. O-O {[%emt 0:00:02]} Be7 {[%emt 0:00:01]} 9. dxc5 {[%emt 0:00:00]} Nxc5 {[%emt 0:00:02]} 10. Nb3 {[%emt 0:00:01]} Nce4 {[%emt 0:00:01]} 11. Nfd4 {[%emt 0:00:08]} Qd7 {[%emt 0:00:01]} 12. Be3 {[%emt 0:00:03]} O-O {[%emt 0:00:08]} 13. c3 {[%emt 0:00:00]} Rfd8 {[%emt 0:00:26]} 14. Re1 {[%emt 0:00:07]} Rac8 {[%emt 0:00:08]} 15. f3 {[%emt 0:00:13]} Nd6 {[%emt 0:00:01]} 16. Bf2 {[%emt 0:00:04]} Nc4 {[%emt 0:00:05]} 17. Rb1 {[%emt 0:00:10]} Bd6 {[%emt 0:00:04]} 18. Nd2 {[%emt 0:00:04]} Ne5 {[%emt 0:00:04]} 19. Qc2 {[%emt 0:00:38]} Ng6 {[%emt 0:00:02]} 20. Nf5 {[%emt 0:00:21]} Bb8 {[%emt 0:00:16]} 21. Bd4 Qc7 {[%emt 0:00:24]} 22. Nf1 {[%emt 0:00:29]} Ne8 {[%emt 0:00:31]} 23. g3 {[%emt 0:01:02]} f6 {[%emt 0:00:05]} 24. h4 {[%emt 0:00:22]} Nd6 {[%emt 0:00:20]} 25. h5 {[%emt 0:00:16]} Nxf5 {[%emt 0:00:01]} 26. Qxf5 {[%emt 0:00:01]} Nf8 {[%emt 0:00:04]} 27. h6 {[%emt 0:00:03]} Qd7 {[%emt 0:00:43]} 28. Qxd7 {[%emt 0:00:27]} Rxd7 {[%emt 0:00:04]} 29. hxg7 {[%emt 0:00:01]} Kxg7 {[%emt 0:00:02]} 30. f4 {[%emt 0:00:12]} Kg6 {[%emt 0:00:20]} 31. Ne3 {[%emt 0:00:10]} h5 {[%emt 0:00:03]} 32. Ng2 {[%emt 0:00:05]} Kf7 {[%emt 0:01:25]} 33. Nh4 {[%emt 0:00:10]} Ne6 {[%emt 0:00:04]} 34. Nf5 {[%emt 0:00:02]} Kg6 {[%emt 0:00:15]} 35. Rxe6 {[%emt 0:00:05]} Kxf5 {[%emt 0:00:02]} 36. Rxf6+ {[%emt 0:00:03]} Ke4 {[%emt 0:00:09]} 37. Kf2 {[%emt 0:00:02]} Kd3 {[%emt 0:00:03]} 38. Re6 {[%emt 0:00:08]} h4 {[%emt 0:00:09]} 39. Re3+ {[%emt 0:00:21]} Kc2 {[%emt 0:00:01]} 40. Rbe1 {[%emt 0:00:09]} hxg3+ {[%emt 0:00:03]} 41. Kxg3 {[%emt 0:00:03]} Kxb2 {[%emt 0:00:06]} 42. c4+ {Bxf4+} 1-0

[Event "3rd FIDE WCCC Blitz U10 2019"]
[Site "Minsk"]
[Date "2019.08.18"]
[Round "5.2"]
[White "Rudnev, Andrei"]
[Black "Samunenkov, Ihor"]
[Result "1-0"]
[ECO "B02"]
[WhiteElo "1639"]
[BlackElo "1964"]
[Annotator "NA"]
[PlyCount "53"]
[EventDate "2019.08.18"]
[EventType "swiss"]
[EventCountry "BLR"]
[SourceTitle "playchess.com"]
[Source "ChessBase"]
[SourceQuality "1"]
[TimeControl "300+2"]

1. e4 {[%emt 0:00:00]} Nf6 {[%emt 0:00:05]} 2. Nc3 {[%emt 0:00:02]} d5 {[%emt 0:00:01]} 3. exd5 {[%emt 0:00:03]} Nxd5 {[%emt 0:00:02]} 4. Bc4 {[%emt 0:00:01]} c6 {[%emt 0:00:01]} 5. d4 {[%emt 0:00:04]} e6 {[%emt 0:00:19]} 6. Nf3 {[%emt 0:00:03]} Be7 {[%emt 0:00:08]} 7. O-O {[%emt 0:00:03]} O-O {[%emt 0:00:04]} 8. Nxd5 {[%emt 0:00:06]} cxd5 {[%emt 0:00:32]} 9. Bd3 {[%emt 0:00:01]} Nc6 {[%emt 0:00:01]} 10. c3 {[%emt 0:00:02]} Rb8 {[%emt 0:00:05]} 11. Bf4 {[%emt 0:00:04]} Bd6 {[%emt 0:00:04]} 12. Bxd6 {[%emt 0:00:32]} Qxd6 {[%emt 0:00:02]} 13. Re1 {[%emt 0:00:01]} h6 {[%emt 0:00:23]} 14. Ne5 {[%emt 0:00:06]} b5 {[%emt 0:00:40]} 15. Qg4 {[%emt 0:00:32]} Nxe5 {[%emt 0:00:44]} 16. dxe5 {[%emt 0:00:03]} Qe7 {[%emt 0:00:01]} 17. Re3 {[%emt 0:00:21]} b4 {[%emt 0:01:24]} 18. Rg3 {[%emt 0:00:03]} f5 {[%emt 0:00:04]} 19. exf6 {[%emt 0:00:14]} Rxf6 {[%emt 0:00:17]} 20. Re1 {[%emt 0:00:34]} bxc3 {[%emt 0:00:01]} 21. bxc3 {[%emt 0:00:01]} Bd7 {[%emt 0:00:02]} 22. Qd4 {[%emt 0:00:15]} Rbf8 {[%emt 0:00:28]} 23. f3 {[%emt 0:00:27]} Bc8 {[%emt 0:00:10]} 24. Qxd5 {[%emt 0:00:18]} Qc7 {[%emt 0:00:01]} 25. Qd4 {[%emt 0:00:05]} Rf4 {[%emt 0:00:07]} 26. Qe3 {[%emt 0:00:07]} Qxc3 {[%emt 0:00:01]} 27. Bh7+ {[%emt 0:00:01]} 1-0

[Event "3rd FIDE WCCC Blitz U10 2019"]
[Site "Minsk"]
[Date "2019.08.18"]
[Round "5.3"]
[White "Vershinin, Igor"]
[Black "Navoyan, Gagik"]
[Result "1-0"]
[ECO "A00"]
[WhiteElo "2188"]
[BlackElo "1698"]
[Annotator "NA"]
[PlyCount "69"]
[EventDate "2019.08.18"]
[EventType "swiss"]
[EventCountry "BLR"]
[SourceTitle "playchess.com"]
[Source "ChessBase"]
[SourceQuality "1"]
[TimeControl "300+2"]

1. a3 {[%emt 0:00:00]} d5 {[%emt 0:00:05]} 2. Nf3 {[%emt 0:00:00]} Nf6 {[%emt 0:00:03]} 3. c4 {[%emt 0:00:02]} c6 {[%emt 0:00:06]} 4. cxd5 {[%emt 0:00:01]} cxd5 {[%emt 0:00:01]} 5. d4 {[%emt 0:00:01]} Bg4 {[%emt 0:00:05]} 6. h3 {[%emt 0:00:03]} Bh5 {[%emt 0:00:00]} 7. Bf4 {[%emt 0:00:02]} Nc6 {[%emt 0:00:04]} 8. e3 {[%emt 0:00:01]} e6 {[%emt 0:00:02]} 9. Bd3 {[%emt 0:00:06]} Bd6 {[%emt 0:00:03]} 10. Bxd6 Qxd6 {[%emt 0:00:01]} 11. O-O {[%emt 0:00:04]} O-O {[%emt 0:00:02]} 12. Nbd2 {[%emt 0:00:03]} Rfe8 {[%emt 0:00:12]} 13. Qb3 {[%emt 0:00:18]} Rab8 {[%emt 0:00:31]} 14. Rac1 {[%emt 0:00:07]} e5 {[%emt 0:00:08]} 15. dxe5 {[%emt 0:00:02]} Nxe5 {[%emt 0:00:01]} 16. Nxe5 {[%emt 0:00:01]} Qxe5 {[%emt 0:00:01]} 17. Rfe1 {[%emt 0:00:06]} Ne4 {[%emt 0:00:34]} 18. Nf1 {[%emt 0:00:24]} Kh8 {[%emt 0:00:36]} 19. Be2 {[%emt 0:00:22]} Bxe2 {[%emt 0:00:07]} 20. Rxe2 {[%emt 0:00:01]} f5 {[%emt 0:00:20]} 21. Rd1 {[%emt 0:00:06]} Nf6 {[%emt 0:00:20]} 22. Rd4 {[%emt 0:00:31]} g5 {[%emt 0:00:33]} 23. h4 {[%emt 0:00:22]} h6 {[%emt 0:00:10]} 24. hxg5 {[%emt 0:00:01]} hxg5 {[%emt 0:00:01]} 25. Qd3 {[%emt 0:00:42]} Rbd8 {[%emt 0:00:34]} 26. Ng3 {[%emt 0:00:17]} Ne4 {[%emt 0:00:09]} 27. Nxe4 {[%emt 0:00:34]} dxe4 {[%emt 0:00:04]} 28. Qd1 {[%emt 0:00:15]} Rxd4 {[%emt 0:00:08]} 29. exd4 {[%emt 0:00:01]} Qf6 {[%emt 0:00:08]} 30. Rd2 {[%emt 0:00:14]} f4 {[%emt 0:00:12]} 31. Qh5+ {[%emt 0:00:05]} Kg7 {[%emt 0:00:08]} 32. Qxe8 {[%emt 0:00:01]} e3 {[%emt 0:00:08]} 33. fxe3 {[%emt 0:00:01]} f3 {[%emt 0:00:00]} 34. Qd7+ {[%emt 0:00:02]} Kh6 {[%emt 0:00:03]} 35. Qh3+ {[%emt 0:00:03]} 1-0

[Event "3rd FIDE WCCC Blitz U10 2019"]
[Site "Minsk"]
[Date "2019.08.18"]
[Round "5.4"]
[White "Zverev, Lev"]
[Black "Nikulin, Aleksandr N."]
[Result "1-0"]
[ECO "C40"]
[WhiteElo "1881"]
[BlackElo "1270"]
[Annotator "NA"]
[PlyCount "89"]
[EventDate "2019.08.18"]
[EventType "swiss"]
[EventCountry "BLR"]
[SourceTitle "playchess.com"]
[Source "ChessBase"]
[SourceQuality "1"]
[TimeControl "300+2"]

1. e4 {[%emt 0:00:00]} e5 {[%emt 0:00:00]} 2. Nf3 {[%emt 0:00:01]} d5 {[%emt 0:00:00]} 3. exd5 {[%emt 0:00:07]} e4 {[%emt 0:00:01]} 4. Nd4 {[%emt 0:00:02]} Qxd5 {[%emt 0:00:02]} 5. Nb3 {[%emt 0:00:01]} Nf6 {[%emt 0:00:04]} 6. Nc3 {[%emt 0:00:01]} Qe5 {[%emt 0:00:01]} 7. Be2 {[%emt 0:00:07]} Bd6 {[%emt 0:00:02]} 8. h3 {[%emt 0:00:03]} O-O {[%emt 0:00:09]} 9. Nb5 {[%emt 0:00:02]} Be7 {[%emt 0:00:07]} 10. Nc3 {[%emt 0:00:44]} a6 {[%emt 0:00:12]} 11. d4 {[%emt 0:00:03]} exd3 {[%emt 0:00:03]} 12. cxd3 {[%emt 0:00:02]} Rd8 {[%emt 0:00:18]} 13. d4 {[%emt 0:00:10]} Qd6 {[%emt 0:00:10]} 14. O-O {[%emt 0:00:11]} Nc6 {[%emt 0:00:19]} 15. Be3 {[%emt 0:00:04]} Bf5 {[%emt 0:00:05]} 16. Qd2 {[%emt 0:00:11]} Ne4 {[%emt 0:00:25]} 17. Nxe4 {[%emt 0:00:06]} Bxe4 {[%emt 0:00:02]} 18. Rad1 {[%emt 0:00:06]} Qg6 {[%emt 0:00:16]} 19. f3 {[%emt 0:00:02]} Bf5 {[%emt 0:00:10]} 20. Kh1 {[%emt 0:00:04]} Bd6 {[%emt 0:00:18]} 21. d5 {[%emt 0:00:51]} Qg3 {[%emt 0:00:17]} 22. f4 {[%emt 0:00:11]} Nb4 {[%emt 0:00:57]} 23. Nd4 {[%emt 0:00:23]} Bxh3 {[%emt 0:01:00]} 24. Bf3 {[%emt 0:00:36]} Bd7 {[%emt 0:00:27]} 25. a3 {[%emt 0:00:07]} Nxd5 {[%emt 0:00:10]} 26. Bxd5 {[%emt 0:00:02]} c5 {[%emt 0:00:02]} 27. Ne2 {[%emt 0:00:04]} Qh4+ {[%emt 0:00:05]} 28. Kg1 {[%emt 0:00:01]} Bc6 {[%emt 0:00:05]} 29. Bxc6 {[%emt 0:00:10]} bxc6 {[%emt 0:00:01]} 30. Nc3 {[%emt 0:00:17]} Be5 {[%emt 0:00:07]} 31. Qe2 {[%emt 0:00:18]} Bxc3 {[%emt 0:00:01]} 32. bxc3 {[%emt 0:00:04]} Re8 {[%emt 0:00:01]} 33. Qf3 {[%emt 0:00:02]} Qe7 {[%emt 0:00:01]} 34. Rfe1 {[%emt 0:00:02]} Qf6 {[%emt 0:00:02]} 35. Bxc5 {[%emt 0:00:03]} Rxe1+ {[%emt 0:00:01]} 36. Rxe1 {[%emt 0:00:01]} h6 {[%emt 0:00:01]} 37. Bd4 {[%emt 0:00:03]} Qd6 {[%emt 0:00:01]} 38. Qg3 {[%emt 0:00:03]} g6 {[%emt 0:00:02]} 39. Be5 {[%emt 0:00:01]} Qxa3 {[%emt 0:00:02]} 40. Qh4 {[%emt 0:00:02]} Qf8 {[%emt 0:00:04]} 41. Qf6 {[%emt 0:00:01]} Kh7 {[%emt 0:00:01]} 42. Rd1 {[%emt 0:00:04]} Ra7 {[%emt 0:00:02]} 43. Rd8 {[%emt 0:00:02]} Qc5+ {[%emt 0:00:01]} 44. Bd4 {[%emt 0:00:03]} Qf5 {[%emt 0:00:03]} 45. Qh8# {[%emt 0:00:02]} 1-0

[Event "3rd FIDE WCCC Blitz U10 2019"]
[Site "Minsk"]
[Date "2019.08.18"]
[Round "5.5"]
[White "Vetokhin, Savva"]
[Black "Misiuk, Martynas"]
[Result "1-0"]
[ECO "B36"]
[WhiteElo "2016"]
[BlackElo "1570"]
[Annotator "NA"]
[PlyCount "59"]
[EventDate "2019.08.18"]
[EventType "swiss"]
[EventCountry "BLR"]
[SourceTitle "playchess.com"]
[Source "ChessBase"]
[SourceQuality "1"]
[TimeControl "300+2"]

1. e4 {[%emt 0:00:00]} c5 {[%emt 0:00:00]} 2. Nf3 {[%emt 0:00:00]} g6 {[%emt 0:00:02]} 3. d4 {[%emt 0:00:01]} cxd4 {[%emt 0:00:01]} 4. Nxd4 {[%emt 0:00:00]} Nc6 {[%emt 0:00:01]} 5. c4 {[%emt 0:00:01]} Nf6 {[%emt 0:00:10]} 6. Nc3 {[%emt 0:00:01]} d6 {[%emt 0:00:04]} 7. Be3 {[%emt 0:00:01]} Bg7 {[%emt 0:00:06]} 8. Be2 {[%emt 0:00:02]} O-O {[%emt 0:00:03]} 9. O-O {[%emt 0:00:01]} a6 {[%emt 0:00:11]} 10. f3 {[%emt 0:00:05]} Qc7 {[%emt 0:00:06]} 11. Qd2 {[%emt 0:00:05]} Rd8 {[%emt 0:00:26]} 12. Rac1 {[%emt 0:00:17]} Bd7 {[%emt 0:00:15]} 13. Nd5 {[%emt 0:00:05]} Qb8 {[%emt 0:00:37]} 14. Nb6 {[%emt 0:00:11]} Ra7 {[%emt 0:00:21]} 15. Nxd7 {[%emt 0:00:05]} Rxd7 {[%emt 0:00:03]} 16. Nxc6 {[%emt 0:00:01]} bxc6 {[%emt 0:00:02]} 17. Bxa7 {[%emt 0:00:01]} Qxa7+ {[%emt 0:00:01]} 18. Kh1 {[%emt 0:00:03]} Qb7 {[%emt 0:00:59]} 19. Rfd1 {[%emt 0:00:10]} d5 {[%emt 0:00:13]} 20. cxd5 {[%emt 0:00:02]} cxd5 {[%emt 0:00:02]} 21. e5 {[%emt 0:00:04]} Ne8 {[%emt 0:00:05]} 22. f4 {[%emt 0:00:01]} Nc7 {[%emt 0:00:12]} 23. Qc3 {[%emt 0:00:05]} f6 {[%emt 0:00:29]} 24. Bf3 {[%emt 0:00:17]} Qb5 {[%emt 0:01:00]} 25. Bg4 {[%emt 0:00:33]} f5 {[%emt 0:00:12]} 26. Bf3 {[%emt 0:00:01]} e6 {[%emt 0:00:03]} 27. Qc6 {[%emt 0:00:07]} Qxc6 {[%emt 0:00:05]} 28. Rxc6 {[%emt 0:00:01]} Re7 {[%emt 0:00:01]} 29. Rdc1 {[%emt 0:00:00]} Ne8 {[%emt 0:00:04]} 30. Rxa6 {[%emt 0:00:02]} 1-0